[Event "10th Cesme Open-A 2024"]
[Site "Cesme"]
[Date "2024.06.25"]
[Round "3"]
[White "Kilic, Eray"]
[Black "Uysal, Ugur"]
[Result "1-0"]
[ECO "D78"]
[WhiteElo "2443"]
[BlackElo "2058"]
[Annotator "TA"]
[PlyCount "97"]
[EventDate "2024.06.23"]
[EventType "swiss"]
[EventCountry "TUR"]
[SourceTitle "playchess.com"]
[Source "ChessBase"]
[SourceQuality "1"]
[TimeControl "5400+30"]

{[%evp 17,97,18,9,0,7,18,12,0,25,27,54,39,29,27,129,31,40,28,31,29,28,18,19,16,37,8,17,8,23,14,18,14,16,0,66,8,70,60,172,116,106,111,127,116,227,216,204,62,82,62,73,80,83,73,70,70,72,21,20,20,25,9,327,322,558,375,347,289,866,858,1176,1157,1177,1177,1810,1776,1139,937,29976,29978,29975,29976]} 1. Nf3 {[%emt 0:01:00]} Nf6 {[%emt 0:01:00]} 2. g3 {[%emt 0:00:30]} g6 {[%emt 0:00:30]} 3. b3 {[%emt 0:00:30]} Bg7 {[%emt 0:00:30]} 4. Bb2 {[%emt 0:00:00]} O-O {[%emt 0:00:00]} 5. Bg2 {[%emt 0:00:00]} d5 {[%emt 0:00:00]} 6. O-O {[%emt 0:00:00]} c6 {[%emt 0:01:30]} 7. c4 {[%emt 0:01:00]} a5 {[%emt 0:00:30]} 8. d4 {[%emt 0:00:00]} Bf5 {[%emt 0:02:30]} 9. Nc3 {[%emt 0:01:00]} Ne4 {[%emt 0:01:30]} 10. Nh4 {[%emt 0:02:30]} Nxc3 {[%emt 0:00:30]} 11. Bxc3 {[%emt 0:00:00]} Be6 {[%emt 0:01:30]} 12. Qd3 {[%emt 0:01:00] The position is equal.} Qd7 {[%emt 0:08:30]} 13. e4 {[%emt 0:02:30][%cal Be2e4,Be4e5][%mdl 32]} Rd8 {[%emt 0:05:30]} 14. cxd5 {[%emt 0:06:30]} cxd5 {[%emt 0:00:30]} 15. e5 {[%emt 0:00:00]} g5 {[%emt 0:13:30] [#]} (15... Bh3 $11) 16. Nf3 {[%emt 0:00:00]} (16. f4 $1 $16 {[%cal Rf4f5]}) 16... h6 {[%emt 0:01:30]} 17. h4 {[%emt 0:01:30]} f6 {[%emt 0:00:30]} 18. Rfe1 {[%emt 0:04:30]} Nc6 {[%emt 0:04:30]} 19. exf6 {[%emt 0:02:30]} exf6 {[%emt 0:01:30]} 20. hxg5 {[%emt 0:01:30]} Bf5 {[%emt 0:03:30]} 21. Qd2 {[%emt 0:00:30]} hxg5 {[%emt 0:01:30]} 22. Nh2 {[%emt 0:00:30][%cal Bf3h2,Bh2f1,Bf1e3][%mdl 32]} Kf7 {[%emt 0:06:30]} 23. Nf1 {[%emt 0:04:30]} Rh8 {[%emt 0:17:30]} (23... Bh3 {keeps more tension.} 24. Qe2 Bg4 25. Bf3 Bxf3 26. Qxf3 g4) 24. Ne3 {[%emt 0:00:30]} Be6 {[%emt 0:00:00]} 25. Qe2 {[%emt 0:01:30][%cal Oe3c4]} Ne7 {[%emt 0:00:00]} (25... Rad8 $11) 26. a4 {[%emt 0:00:00]} (26. Rac1 $14) 26... Bh3 {[%emt 0:04:30]} (26... Rh6 $11) 27. Bf3 $14 {[%emt 0:04:00]} Rhc8 {[%emt 0:04:30]} ({Black should try} 27... Be6 $14) 28. Bd2 {[%emt 0:01:30]} (28. Bb2 $18) 28... Be6 $16 {[%emt 0:00:30]} 29. Bh5+ {[%emt 0:02:30]} Kf8 {[%emt 0:00:30]} 30. Bc1 {[%emt 0:01:30] Ba3 is the strong threat.} Nc6 {[%emt 0:02:52]} (30... Nf5 $16 {was necessary.}) 31. Ba3+ {[%emt 0:01:30]} Kg8 {[%emt 0:00:30] [#]} 32. Bc5 {[%emt 0:00:00]} (32. Bg6 $1 $18 {aiming for Qh5.} Bf8 33. Bxf8 Rxf8 34. Qh5) 32... Rab8 $14 {[%emt 0:01:02]} 33. Bb6 {[%emt 0:01:00] White is more active.} f5 {[%emt 0:01:46]} 34. Rad1 {[%emt 0:00:00][%cal Oe3g4]} Rf8 {[%emt 0:01:37] [#]} 35. Ng4 $1 {[%emt 0:01:00] Repels Rf6} Bf7 {[%emt 0:00:53]} 36. Ne5 $36 {[%emt 0:00:30][%mdl 2048] White is pushing.} Bxe5 {[%emt 0:01:54]} 37. Bxf7+ {[%emt 0:01:30]} ({Better is} 37. dxe5 $16 {And now e6 would win.} Be6 38. Bf3) 37... Rxf7 $11 {[%emt 0:01:04]} 38. dxe5 {[%emt 0:00:30] Black must now prevent e6.} Qe6 {[%emt 0:00:05]} 39. Qd2 {[%emt 0:03:30][%csl LRa5,LRd5,LRg5]} Nxe5 $2 {[%emt 0:01:40][%mdl 8192] Black cannot hold the game after this.} (39... d4 $1 $11 {and Black has nothing to worry.}) 40. Qxg5+ $18 {[%emt 0:00:30]} (40. Qxd5 Qxd5 (40... Qxb6 $2 41. Rxe5 Qc6 42. Rxf5 $18) 41. Rxd5 Nf3+ 42. Kf1 Nxe1 43. Kxe1 Rc8 $16) 40... Rg7 $2 {[%emt 0:00:30]} (40... Qg6 {keeps fighting.} 41. Qxg6+ Nxg6 42. Rxd5 Ra8 43. Bxa5 (43. Rxa5 Rxa5 44. Re8+ Kg7 $18) 43... Ne7) 41. Qf4 {[%emt 0:00:00]} Qxb6 {[%emt 0:01:26]} 42. Qxe5 {[%emt 0:00:00]} Rf8 {[%emt 0:05:48]} (42... Rd8 43. Rd3 (43. Qxf5 Rxg3+ 44. Kf1 Qa6+ 45. Re2 Qg6 $14) (43. Rxd5 Rf8 $18) 43... Rg6 44. Qxf5 (44. Rxd5 Rf8 $18) 44... Qf6 45. Rxd5 Qxf5 46. Rxf5 b6) 43. Qxd5+ {[%emt 0:00:00]} Kh7 {[%emt 0:00:25]} 44. Re6 {[%emt 0:00:00]} Qc7 {[%emt 0:01:53]} 45. Kg2 {[%emt 0:00:30] White threatens Rh1+ and mate.} Qf7 {[%emt 0:00:30]} 46. Rh1+ {[%emt 0:00:30]} Kg8 {[%emt 0:00:00]} 47. Qd6 {[%emt 0:00:00] Threatening mate with Reh6.} Qc7 {[%emt 0:01:37] [#]} 48. Rh8+ $3 {[%emt 0:00:00][%mdl 512]} Kxh8 {[%emt 0:00:30]} 49. Qxf8+ {[%emt 0:00:30] Weighted Error Value: White=0.31/Black=0.49.  Loses game:     	---       	Black=1      Mistake:       	White=5     	Black=7      Inaccurate:     	White=2     	Black=2      OK:         	White=13    	Black=7      Best:        	White=3     	Black=6} 1-0

[Event "10th Cesme Open-A 2024"]
[Site "Cesme"]
[Date "2024.06.25"]
[Round "3"]
[White "Ozsakallioglu, Okan"]
[Black "Bicer, Atakan Mert"]
[Result "1/2-1/2"]
[ECO "B10"]
[WhiteElo "2402"]
[BlackElo "2313"]
[Annotator "RC"]
[PlyCount "177"]
[EventDate "2024.06.23"]
[EventType "swiss"]
[EventCountry "TUR"]
[SourceTitle "playchess.com"]
[Source "ChessBase"]
[SourceQuality "1"]
[TimeControl "5400+30"]

1. e4 {[%emt 0:04:00]} c6 {[%emt 0:01:00]} 2. Nf3 {[%emt 0:00:30]} d5 {[%emt 0:00:30]} 3. d3 {[%emt 0:00:00]} dxe4 {[%emt 0:00:30]} 4. dxe4 {[%emt 0:00:00]} Qxd1+ {[%emt 0:00:30]} 5. Kxd1 {[%emt 0:00:30]} Nf6 {[%emt 0:00:30]} 6. Nbd2 {[%emt 0:00:00]} g6 {[%emt 0:00:00]} 7. Ne5 {[%emt 0:05:00]} Bg7 {[%emt 0:00:00]} 8. Nd3 {[%emt 0:00:30]} b6 {[%emt 0:00:00]} 9. f3 {[%emt 0:02:30]} O-O {[%emt 0:04:00]} 10. a4 {[%emt 0:08:30]} c5 {[%emt 0:10:30]} 11. c3 {[%emt 0:09:30]} Nc6 {[%emt 0:08:30]} 12. Nc4 {[%emt 0:01:30]} Ba6 {[%emt 0:02:30]} 13. Nf4 {[%emt 0:01:30]} e6 {[%emt 0:18:30]} 14. h4 {[%emt 0:12:30]} h5 {[%emt 0:03:30]} 15. Be3 {[%emt 0:02:30]} Nd7 {[%emt 0:16:30]} 16. Kc2 {[%emt 0:02:30]} Bxc4 {[%emt 0:02:30]} 17. Bxc4 {[%emt 0:00:30]} Nde5 {[%emt 0:00:00]} 18. Be2 {[%emt 0:01:30]} Na5 {[%emt 0:01:00]} 19. Rad1 {[%emt 0:00:30]} Rfd8 {[%emt 0:01:30]} 20. Bc1 {[%emt 0:01:30]} Bf6 {[%emt 0:06:30]} 21. Rxd8+ {[%emt 0:08:30]} Rxd8 {[%emt 0:00:30]} 22. g4 {[%emt 0:00:30]} hxg4 {[%emt 0:00:30]} 23. fxg4 {[%emt 0:00:00]} Be7 {[%emt 0:01:30]} 24. g5 {[%emt 0:00:00]} Nb7 {[%emt 0:05:27]} 25. h5 {[%emt 0:02:30]} Nd6 {[%emt 0:00:55]} 26. hxg6 {[%emt 0:01:30]} Nxg6 {[%emt 0:00:07]} 27. Nxg6 {[%emt 0:14:30]} fxg6 {[%emt 0:00:10]} 28. Rh4 {[%emt 0:01:30]} e5 {[%emt 0:01:34]} 29. Be3 {[%emt 0:00:54]} Kg7 {[%emt 0:00:18]} 30. b4 {[%emt 0:00:12]} cxb4 {[%emt 0:02:23]} 31. cxb4 {[%emt 0:00:30]} Nf7 {[%emt 0:00:00]} 32. Rg4 {[%emt 0:06:54]} Bxb4 {[%emt 0:00:02]} 33. Bc4 {[%emt 0:00:06]} Rc8 {[%emt 0:02:34]} 34. Kd3 {[%emt 0:01:32]} Nd6 {[%emt 0:00:21]} 35. Bd5 {[%emt 0:00:00]} Rc3+ {[%emt 0:01:13]} 36. Ke2 {[%emt 0:00:00]} Ra3 {[%emt 0:00:39]} 37. Bc1 {[%emt 0:02:45]} Rc3 {[%emt 0:01:35]} 38. Kd1 {[%emt 0:01:19]} Nc4 {[%emt 0:02:06]} 39. Rg1 {[%emt 0:01:54]} Bc5 {[%emt 0:05:22]} 40. Rf1 {[%emt 0:00:22]} Rxc1+ {[%emt 0:00:21]} 41. Kxc1 {[%emt 0:00:30]} Ba3+ {[%emt 0:00:00]} 42. Kc2 {[%emt 0:01:55]} Ne3+ {[%emt 0:00:16]} 43. Kb3 {[%emt 0:00:30]} Nxf1 {[%emt 0:00:30]} 44. Kxa3 {[%emt 0:00:00]} Ne3 {[%emt 0:01:20]} 45. Bb3 {[%emt 0:00:38]} a5 {[%emt 0:01:38]} 46. Kb2 {[%emt 0:00:30]} Kf8 {[%emt 0:00:00]} 47. Kc3 {[%emt 0:00:17]} Ke7 {[%emt 0:00:26]} 48. Kd3 {[%emt 0:00:00]} Ng2 {[%emt 0:01:38]} 49. Kc4 {[%emt 0:00:45]} Kd6 {[%emt 0:00:30]} 50. Kb5 {[%emt 0:00:30]} Kc7 {[%emt 0:00:30]} 51. Bf7 {[%emt 0:00:02]} Nf4 {[%emt 0:00:00]} 52. Be8 {[%emt 0:00:45]} Nh3 {[%emt 0:00:00]} 53. Kc4 {[%emt 0:02:11]} Nf4 {[%emt 0:01:23]} 54. Kb5 {[%emt 0:00:11]} Ne6 {[%emt 0:00:33]} 55. Bxg6 {[%emt 0:00:30]} Nxg5 {[%emt 0:00:00]} 56. Kc4 {[%emt 0:01:24]} Ne6 {[%emt 0:00:08]} 57. Bf5 {[%emt 0:00:51]} Nf4 {[%emt 0:00:30]} 58. Bh7 {[%emt 0:00:30]} Kc6 {[%emt 0:00:30]} 59. Bg8 {[%emt 0:00:30]} Ne2 {[%emt 0:00:30]} 60. Bd5+ {[%emt 0:00:30]} Kd6 {[%emt 0:00:30]} 61. Ba8 {[%emt 0:00:30]} Nd4 {[%emt 0:00:30]} 62. Bd5 {[%emt 0:00:30]} Kd7 {[%emt 0:00:30]} 63. Bg8 {[%emt 0:00:30]} Kc6 {[%emt 0:00:30]} 64. Bd5+ {[%emt 0:00:30]} Kd6 {[%emt 0:00:30]} 65. Ba8 {[%emt 0:00:30]} Ne6 {[%emt 0:00:30]} 66. Bd5 {[%emt 0:00:30]} Nc5 {[%emt 0:00:30]} 67. Kb5 {[%emt 0:00:30]} Kc7 {[%emt 0:00:30]} 68. Ba8 {[%emt 0:00:30]} Ne6 {[%emt 0:00:30]} 69. Bd5 {[%emt 0:00:30]} Nd4+ {[%emt 0:00:30]} 70. Kc4 {[%emt 0:00:30]} Nc6 {[%emt 0:00:30]} 71. Kb5 {[%emt 0:00:30]} Ne7 {[%emt 0:00:30]} 72. Be6 {[%emt 0:03:35]} Ng6 {[%emt 0:02:58]} 73. Bf7 {[%emt 0:01:00]} Nf4 {[%emt 0:00:30]} 74. Kc4 {[%emt 0:00:30]} Kc6 {[%emt 0:00:02]} 75. Be8+ {[%emt 0:00:03]} Kd6 {[%emt 0:00:30]} 76. Kb5 {[%emt 0:00:04]} Kc7 {[%emt 0:00:11]} 77. Kc4 {[%emt 0:00:03]} Kd8 {[%emt 0:00:49]} 78. Bf7 {[%emt 0:00:33]} Ke7 {[%emt 0:00:16]} 79. Bd5 {[%emt 0:01:12]} Kd6 {[%emt 0:00:45]} 80. Bf7 {[%emt 0:00:30]} Ng2 {[%emt 0:00:13]} 81. Kb5 {[%emt 0:00:30]} Kc7 {[%emt 0:00:00]} 82. Bg8 {[%emt 0:00:29]} Ne3 {[%emt 0:00:55]} 83. Bb3 {[%emt 0:01:00]} Nf1 {[%emt 0:00:40]} 84. Bd5 {[%emt 0:00:48]} Nd2 {[%emt 0:00:14]} 85. Ba8 {[%emt 0:00:00]} Nb3 {[%emt 0:00:21]} 86. Bd5 {[%emt 0:01:02]} Nc5 {[%emt 0:00:43]} 87. Ba8 {[%emt 0:00:11]} Nb7 {[%emt 0:01:10]} 88. Ka6 {[%emt 0:00:44]} Nd6 {[%emt 0:00:38]} 89. Bd5 {[%emt 0:00:00]} 1/2-1/2

[Event "10th Cesme Open-A 2024"]
[Site "Cesme"]
[Date "2024.06.25"]
[Round "3"]
[White "Haznedaroglu, Kivanc"]
[Black "Zerey, Demhat"]
[Result "1/2-1/2"]
[ECO "A13"]
[WhiteElo "2359"]
[BlackElo "2038"]
[Annotator "RC"]
[PlyCount "57"]
[EventDate "2024.06.23"]
[EventType "swiss"]
[EventCountry "TUR"]
[SourceTitle "playchess.com"]
[Source "ChessBase"]
[SourceQuality "1"]
[TimeControl "5400+30"]

1. c4 {[%emt 0:01:00]} e6 {[%emt 0:01:00]} 2. Nf3 {[%emt 0:00:00]} d5 {[%emt 0:00:30]} 3. g3 {[%emt 0:00:00]} Nf6 {[%emt 0:01:30]} 4. Bg2 {[%emt 0:00:30]} d4 {[%emt 0:00:00]} 5. b4 {[%emt 0:06:30]} Bxb4 {[%emt 0:00:00]} 6. Qa4+ {[%emt 0:00:30]} Nc6 {[%emt 0:00:00]} 7. Ne5 {[%emt 0:02:30]} Rb8 {[%emt 0:00:00]} 8. Nxc6 {[%emt 0:05:30]} bxc6 {[%emt 0:00:30]} 9. Bxc6+ {[%emt 0:00:30]} Bd7 {[%emt 0:00:00]} 10. O-O {[%emt 0:00:30]} Rb6 {[%emt 0:08:00]} 11. Bxd7+ {[%emt 0:00:30]} Qxd7 {[%emt 0:00:00]} 12. Qxd7+ {[%emt 0:06:30]} Kxd7 {[%emt 0:00:00]} 13. d3 {[%emt 0:00:00]} Rhb8 {[%emt 0:02:30]} 14. Rd1 {[%emt 0:04:00]} Bc3 {[%emt 0:08:30]} 15. Nxc3 {[%emt 0:00:30]} dxc3 {[%emt 0:00:30]} 16. a4 {[%emt 0:00:30]} Rb1 {[%emt 0:00:30]} 17. Ra3 {[%emt 0:02:30]} R8b3 {[%emt 0:12:30]} 18. Rxb3 {[%emt 0:07:30]} c2 {[%emt 0:04:30]} 19. Rf1 {[%emt 0:00:30]} Rxb3 {[%emt 0:00:30]} 20. f3 {[%emt 0:00:00]} Rb4 {[%emt 0:06:30]} 21. a5 {[%emt 0:02:00]} Ra4 {[%emt 0:02:30]} 22. Bd2 {[%emt 0:06:30]} Ne8 {[%emt 0:04:30]} 23. Rc1 {[%emt 0:05:30]} Ra2 {[%emt 0:00:30]} 24. Kf2 {[%emt 0:00:30]} Nd6 {[%emt 0:00:00]} 25. Ke1 {[%emt 0:01:30]} Nb7 {[%emt 0:00:00]} 26. Bb4 {[%emt 0:00:00]} Nxa5 {[%emt 0:03:30]} 27. Bxa5 {[%emt 0:00:00]} Rxa5 {[%emt 0:00:30]} 28. Rxc2 {[%emt 0:00:00]} Ra1+ {[%emt 0:00:00]} 29. Kd2 {[%emt 0:01:00]} 1/2-1/2

[Event "10th Cesme Open-A 2024"]
[Site "Cesme"]
[Date "2024.06.25"]
[Round "3"]
[White "Yurtseven, Melih"]
[Black "Kovalev, Vladislav"]
[Result "1/2-1/2"]
[ECO "C47"]
[WhiteElo "2333"]
[BlackElo "2559"]
[Annotator "TA"]
[PlyCount "48"]
[EventDate "2024.06.23"]
[EventType "swiss"]
[EventCountry "TUR"]
[SourceTitle "playchess.com"]
[Source "ChessBase"]
[SourceQuality "1"]
[TimeControl "5400+30"]

{[%evp 17,48,0,3,0,0,12,11,12,14,9,24,0,7,3,8,0,0,-35,-38,-41,-56,-44,-26,-31,-11,-26,-34,-36,0,0,25,29,17]} 1. e4 {[%emt 0:06:00]} e5 {[%emt 0:01:00]} 2. Nf3 {[%emt 0:00:30]} Nc6 {[%emt 0:00:00]} 3. Nc3 {[%emt 0:00:30]} Nf6 {[%emt 0:00:00]} 4. d4 {[%emt 0:01:30]} exd4 {[%emt 0:01:30]} 5. Nxd4 {[%emt 0:00:30]} Bb4 {[%emt 0:00:00]} 6. Nxc6 {[%emt 0:00:30]} bxc6 {[%emt 0:00:00]} 7. Bd3 {[%emt 0:00:30]} O-O {[%emt 0:01:30]} 8. O-O {[%emt 0:00:30]} d5 {[%emt 0:00:30]} 9. exd5 {[%emt 0:06:30]} cxd5 {[%emt 0:00:30]} 10. h3 {[%emt 0:00:00] Repels Bg4} Rb8 {[%emt 0:00:30]} 11. Qf3 {[%emt 0:00:00]} c6 {[%emt 0:07:30]} 12. Bf4 {[%emt 0:02:30] The position is equal.} Bd6 {[%emt 0:00:30]} 13. b3 {[%emt 0:00:30]} Qc7 {[%emt 0:04:30]} 14. Ne2 {[%emt 0:06:30]} c5 {[%emt 0:00:30]} 15. Bxd6 {[%emt 0:16:30]} Qxd6 {[%emt 0:00:00]} 16. Ng3 {[%emt 0:00:30]} g6 {[%emt 0:06:00]} 17. c4 {[%emt 0:03:30]} d4 {[%emt 0:01:30]} 18. Ne4 {[%emt 0:00:30]} Nxe4 {[%emt 0:00:30]} 19. Bxe4 {[%emt 0:00:00]} Bd7 {[%emt 0:06:30]} 20. Rfe1 {[%emt 0:01:00]} Rbe8 {[%emt 0:00:30]} 21. Bd5 {[%emt 0:08:30]} Be6 {[%emt 0:14:30]} 22. Bc6 {[%emt 0:00:30]} Re7 {[%emt 0:01:30]} 23. Qf6 $1 {[%emt 0:02:30][%cal Oc6d5]} Qd8 {[%emt 0:12:30] [#]} 24. Bd5 $1 {[%emt 0:04:30]} Rfe8 {[%emt 0:00:30] Weighted Error Value: White=0.06 (flawless) /Black=0.10 (very precise) .  Inaccurate:     	White=1     	Black=1      OK:         	White=4     	Black=6      Strong:       	White=1     	---} 1/2-1/2

[Event "10th Cesme Open-A 2024"]
[Site "Cesme"]
[Date "2024.06.25"]
[Round "3"]
[White "Gunduz, Umut Erdem"]
[Black "Kharitonov, Alexandr"]
[Result "0-1"]
[ECO "B15"]
[WhiteElo "2312"]
[BlackElo "2522"]
[Annotator "TA"]
[PlyCount "38"]
[EventDate "2024.06.23"]
[EventType "swiss"]
[EventCountry "TUR"]
[SourceTitle "playchess.com"]
[Source "ChessBase"]
[SourceQuality "1"]
[TimeControl "5400+30"]

{[%evp 18,38,34,34,44,10,45,20,3,0,20,14,14,14,70,-140,-140,-273,-229,-891,-878,-2727,-2472]} 1. e4 {[%emt 0:02:00]} c6 {[%emt 0:01:00]} 2. d4 {[%emt 0:00:00]} d5 {[%emt 0:00:00]} 3. Nc3 {[%emt 0:00:00]} dxe4 {[%emt 0:01:00]} 4. Nxe4 {[%emt 0:00:30]} Nf6 {[%emt 0:00:30]} 5. Nxf6+ {[%emt 0:00:30]} exf6 {[%emt 0:00:30]} 6. c3 {[%emt 0:00:00]} Bd6 {[%emt 0:00:00]} 7. Bd3 {[%emt 0:00:00]} O-O {[%emt 0:00:00]} 8. Qc2 {[%emt 0:00:00]} Re8+ {[%emt 0:00:30]} 9. Ne2 {[%emt 0:00:00]} h6 {[%emt 0:00:30]} 10. O-O {[%emt 0:00:00]} Nd7 {[%emt 0:00:30]} 11. Be3 {[%emt 0:06:00]} Nf8 {[%emt 0:03:30]} 12. c4 {[%emt 0:05:30]} Bg4 {[%emt 0:02:30] The position is equal.} 13. Nc3 {[%emt 0:06:30]} Qd7 {[%emt 0:11:30]} 14. d5 {[%emt 0:01:30]} f5 {[%emt 0:03:30][%cal Bf6f5,Bf5f4,Bf4f3][%mdl 32]} 15. Qd2 {[%emt 0:10:30]} Ng6 {[%emt 0:08:30]} (15... Bh5 $11) 16. h3 $2 {[%emt 0:17:30]} (16. f3 $1 $14 {stays ahead.} Bh5 17. c5) 16... f4 $17 {[%emt 0:11:30]} 17. Bd4 {[%emt 0:08:30] [#]} (17. Bc5 $17 Bxc5 18. hxg4) 17... f3 $1 $19 {[%emt 0:04:30]} 18. Rfe1 $2 {[%emt 0:18:30] [#]} (18. hxg4 Qxg4) (18. Bxg6 fxg2 19. Bh7+ (19. hxg4 $2 gxf1=Q+ 20. Kxf1 fxg6 $19) (19. Rfe1 Bf3 $11) 19... Kxh7 20. Rfe1 Bxh3 (20... Rxe1+ 21. Rxe1 Bxh3 22. c5 $15) 21. c5) 18... Bxh3 $1 {[%emt 0:02:30][%mdl 512]} 19. Ne4 {[%emt 0:01:30] [#]} (19. gxf3 Bg2) 19... Rxe4 $1 {[%emt 0:03:30][%mdl 512] Weighted Error Value: White=1.67/Black=0.11 (very precise) .  Mistake:       	White=3     	Black=1      Inaccurate:     	White=2     	Black=1      OK:         	---       	Black=1      Strong:       	---       	Black=1      Brilliant:      	---       	Black=1} 0-1